Cogmind - Beta 16 @@@ ROGUE MODE // 2025.11.20 @ 21:56:32 Player: V_ Result: Destroyed by G-34 Mercenary with Small Laser Performance ------------- Evolutions (0) 0 Regions Visited (1) 200 Robots Destroyed (18) 90 Value Destroyed (380) 380 Prototype IDs (4) 80 Alien Tech Used (0) 0 Bonus (0) 0 TOTAL SCORE: 750 Bonus ------- None Cogmind --------- Core Integrity 0/250 Matter 285/300 Energy 100/100 System Corruption 7% Temperature Cool (6) Movement Walking (120) Location -10/Materials Parts ------- > --- POWER (1) -------- (None) > --- PROPULSION (2) --- Aluminum Leg > --- UTILITY (2) ------ Hardened Light Armor Plating > --- WEAPON (2) ------- Mace Mace > --- INVENTORY (5) ---- Improved Terrain Scanner Mining Laser Mace Mace Peak State ------------ > --- POWER ------------ Light Nuclear Core > --- PROPULSION ------- Aluminum Leg Aluminum Leg > --- UTILITY ---------- Improved Terrain Scanner Core Shielding > --- WEAPON ----------- Mace Mace > --- INVENTORY -------- Hardened Light Armor Plating Mining Laser Mace Mace [Rating: 13] Favorites ----------- Power Light Ion Engine Engine Light Ion Engine Power Core Light Nuclear Core Propulsion Aluminum Leg Leg Aluminum Leg Utility Core Shielding Device Seismic Detector Protection Core Shielding Weapon Mace Energy Gun EM Pulse Gun Ballistic Gun Light Assault Rifle Impact Weapon Mace Build | -11 -10 ------- Run | Yrd Mat Slots Evolved . | . . Power . | . . Propulsion . | . . Utility . | . . Weapon . | . . Parts Attached 17 | 7 10 Power 2 | 1 1 Engine 1 | 1 . Core 1 | . 1 Reactor . | . . Propulsion 5 | 2 3 Treads . | . . Leg 5 | 2 3 Wheel . | . . Hover . | . . Flight . | . . Utility 5 | 2 3 Device 2 | 2 . Storage . | . . Processor . | . . Hackware . | . . Protection 3 | . 3 Artifact . | . . Weapon 5 | 2 3 Energy Gun 2 | 1 1 Energy Cannon . | . . Ballistic Gun 1 | 1 . Ballistic Cannon . | . . Launcher . | . . Special Weapon . | . . Impact Weapon 2 | . 2 Slashing Weapon . | . . Piercing Weapon . | . . Special Melee Weapon . | . . Unidentified Prototypes . | . . Corrupted Parts 1 | . 1 System Corruption 7 | . 7 Parts Lost 8 | . 8 Power 2 | . 2 Propulsion 4 | . 4 Utility 2 | . 2 Weapon . | . . Highest Loss Streak 4 | . 4 To Critical Strikes . | . . Average Backups 3 | . 4 Power . | . . Propulsion . | . . Utility . | . . Weapon 2 | . 2 Tool/Special . | . . Unused Backups 5 | . 5 Power . | . . Propulsion . | . . Utility . | . . Weapon 5 | . 5 Tool/Special . | . . Average Slot Usage (%) 94 | . 94 Engine 8 | . 8 Core 1 | . 1 Leg 27 | . 27 Device 11 | . 11 Protection 16 | . 16 Energy Gun 1 | . 1 Impact Weapon 25 | . 25 Peak Build Rating 13 | 9 13 Average Rating 9 | 5 9 On Entrance 4 | . 9 Avg Prop Armor Cover (%) . | . . Naked Turns . | . . Heaviest Build 13 | 8 13 Greatest Support 20 | 20 20 Greatest Overweight (x) 3 | . 3 Average Overweight (x) . | . . Largest Inventory Capacity 5 | 5 5 Average Capacity 5 | 5 5 Most Carried 5 | 1 5 Average Carried 3 | . 4 Final Capacity 5 | 5 5 Final Carried 4 | 1 4 Class Distribution -------------------- 100% | Mutant Dominant Class ---------------- Mutant | -10/Materials Resources | -11 -10 ----------- Run | Yrd Mat Matter Collected 358 | 275 83 Remotely . | . . Salvage Created 547 | 138 409 Parts 20 | 8 12 Haulers Intercepted 1 | . 1 Recyclers Shooed . | . . Parts Field Recycled . | . . Retrieved Matter . | . . Parts Self-Destructed . | . . Prevented . | . . Parts Restored . | . . Kills | -11 -10 ------- Run | Yrd Mat Combat Hostiles Destroyed 14 | . 14 Melee 7 | . 7 Classes Destroyed 5 | 2 3 Tunneler 2 | 2 . Hauler 1 | . 1 Recycler 1 | 1 . Swarmer 6 | . 6 Grunt 8 | . 8 Best Kill Streak 4 | 2 4 Combat Bots Only 4 | . 4 Max Kills in Single Turn 1 | 1 1 Gunslinging . | . . Exploded . | . . Melee 1 | . 1 Uniques/NPCs Destroyed . | . . Combat | -11 -10 -------- Run | Yrd Mat Hostile Shots Fired 146 | . 146 Missed 31 | . 31 Hits 115 | . 115 Projectile 115 | . 115 Critical Strikes 1 | . 1 Actively Blocked 1 | . 1 Damage Taken 1236 | . 1236 Core 258 | . 258 Absorbed by Shields . | . . Redirected to Shielding 50 | . 50 Regen/Repaired (Parts) 2 | . 2 Core Remaining (%) 100 | 100 . Volleys Fired 8 | 5 3 Largest 2 | 2 2 Hottest 60 | 60 60 Shots Fired 16 | 10 6 Gun 16 | 10 6 Cannon . | . . Launcher . | . . Special . | . . Kinetic 8 | 5 3 Thermal . | . . Explosive . | . . Electromagnetic 8 | 5 3 Robot Hit Streak 4 | 4 4 Robot Miss Streak 1 | 1 1 Penetration Max . | . . Secondary Targets . | . . Shots Hit Robots 44 | 6 38 Core Hits 12 | 4 8 Critical Kills 3 | . 3 Critical Parts Destroyed 3 | . 3 Critical Strikes 6 | . 6 Smash 6 | . 6 Melee Attacks 62 | . 62 Impact 62 | . 62 Slashing . | . . Piercing . | . . Sneak Attacks 1 | . 1 Combat Hostiles . | . . Follow-up Attacks 5 | . 5 Damage Inflicted 1206 | 69 1137 Guns 109 | 69 40 Cannons . | . . Explosions . | . . Melee 1097 | . 1097 Ramming . | . . Kinetic 41 | 16 25 Thermal . | . . Explosive . | . . Electromagnetic 68 | 53 15 Impact 1097 | . 1097 Slashing . | . . Piercing . | . . Highest Corruption 7 | . 7 Average Corruption 7 | . 7 Corruption Purged . | . . Corruption Blocked . | . . Effects 1 | . 1 Matter Fused 1 | . 1 Overload Shots . | . . Overflow Damage 130 | . 130 Projectiles . | . . Explosions . | . . Melee 130 | . 130 Knockbacks 5 | . 5 Impact 5 | . 5 Kinetic . | . . Secondary . | . . Self-Inflicted Damage . | . . Shots . | . . Rammed . | . . Targets Rammed . | . . Kicked . | . . Crushed . | . . Highest Temperature 20 | 20 20 Average Temperature 11 | 13 9 Received Heat Transfer 486 | . 486 Siege Activations . | . . Martial Activations . | . . Shielding Activations . | . . Robots Disrupted . | . . Combat Hostiles . | . . Robots Corrupted 8 | . 8 Combat Hostiles 7 | . 7 Parts Fried 5 | . 5 Impact Corruptions 13 | . 13 Robots Melted . | . . Combat Hostiles . | . . Parts Melted . | . . Heat Transferred . | . . Parts Sabotaged . | . . Parts Stolen . | . . Parts Stripped . | . . Power Chain Reactions . | . . Alert | -11 -10 ------- Run | Yrd Mat Maximum Alert Level . | . . Low Security (%) 100 | 100 100 Level 1 . | . . Level 2 . | . . Level 3 . | . . Level 4 . | . . Level 5 . | . . High Security . | . . Max Security . | . . Peak Influence 131 | 5 131 Initial . | . . Average 37 | 1 41 Influence Increases 453 | 15 438 Destroy 0b10 Robot/C 280 | . 280 Destroy 0b10 Robot/NC 20 | 15 5 Destroy Leader 62 | . 62 Successful Hack 16 | . 16 Partial Spotted 15 | . 15 Lose Combat Pursuer 60 | . 60 Influence Decreases 322 | 15 307 Time Decay 242 | 15 227 Lost Part 80 | . 80 Squads Dispatched 5 | . 5 Investigation 2 | . 2 Extermination . | . . Reinforcement 3 | . 3 Assault . | . . Garrison . | . . Intercept . | . . Searches Triggered . | . . Construction Impeded . | . . Haulers Reinforced . | . . Active Scanning Responses . | . . Cargo Convoy Interrupts . | . . Stealth | -11 -10 --------- Run | Yrd Mat Distress Signals 2 | . 2 Communications Jammed . | . . Distress Signals . | . . Times Spotted 28 | . 28 Peak Tracking Total 5 | . 5 Tactical Retreats 3 | . 3 Traps | -11 -10 ------- Run | Yrd Mat Traps Triggered . | . . Indirectly . | . . Trap Hack Attempts . | . . Triggered . | . . Disarmed . | . . Reprogrammed . | . . Reused . | . . Traps Extracted . | . . Installed . | . . Triggered . | . . Machines | -11 -10 ---------- Run | Yrd Mat Machines Disabled . | . . Max in Single Turn . | . . Machines Repaired . | . . Machines Dismantled . | . . Machines Sabotaged . | . . Overloaded Fab Kills . | . . Hacking | -11 -10 --------- Run | Yrd Mat Machines Accessed 7 | . 7 Terminals 4 | . 4 Fabricators . | . . Repair Stations 1 | . 1 Recycling Units 2 | . 2 Scanalyzers . | . . Garrison Access . | . . Total Hacks 17 | . 17 Successful 11 | . 11 Failed 6 | . 6 Catastrophic 1 | . 1 Database Lockouts . | . . Manual 1 | . 1 Terminals 10 | . 10 Fabricators . | . . Repair Stations 3 | . 3 Recycling Units 4 | . 4 Scanalyzers . | . . Garrison Access . | . . Terminal Hacks 5 | . 5 Prototype ID Bank 2 | . 2 Recycling Unit Index 1 | . 1 Alert Level 1 | . 1 Locate Traps 1 | . 1 Fabricator Hacks . | . . Repair Station Hacks 3 | . 3 Scan Component 2 | . 2 Repair 1 | . 1 Recycling Unit Hacks 3 | . 3 Report Inventory 2 | . 2 Retrieve Components 1 | . 1 Scanalyzer . | . . Garrison Access Hacks . | . . Unauthorized Hacks . | . . Terminals . | . . Fabricators . | . . Repair Stations . | . . Recycling Units . | . . Scanalyzers . | . . Garrison Access . | . . Data Cores Recovered . | . . Used . | . . Hacking Detections 5 | . 5 Full Trace Events 2 | . 2 Feedback Events . | . . Feedback Blocked . | . . Robot Schematics Acquired . | . . Robots Built . | . . Authchips . | . . Time . | . . Total Robot Build Rating . | . . Part Schematics Acquired . | . . Parts Built . | . . Authchips . | . . Time . | . . Total Part Build Rating . | . . Part Studies Acquired . | . . Parts Repaired 1 | . 1 Time 53 | . 53 Parts Recycled . | . . Recycled Matter . | . . Retrieved Matter . | . . Retrieved Components 1 | . 1 Parts Scanalyzed . | . . Part Schematics Acquired . | . . Parts Damaged . | . . Bothacking | -11 -10 ------------ Run | Yrd Mat Used RIF Installer . | . . Robots Hacked . | . . Non-combat . | . . Combat . | . . Robot Hacks Applied . | . . Relay Couplers Released . | . . Fabnet Peak Effective % . | . . Robots Rewired . | . . Allies Hacked . | . . Hacks Repelled . | . . Allies | -11 -10 -------- Run | Yrd Mat Total Allies . | . . Largest Group . | . . Highest-Rated Group . | . . Highest-Rated Ally . | . . Total Orders . | . . Ally Attacks . | . . Total Damage . | . . Kills . | . . Allies Corrupted . | . . Allies Melted . | . . Intel | -11 -10 ------- Run | Yrd Mat Active Infowar (turns) 629 | 31 598 Terrain 358 | 31 327 Seismic 378 | 28 350 Robot Analysis Total . | . . Derelict Logs Recovered . | . . Drone Launches . | . . Drone Recoveries . | . . Exploration | -11 -10 ------------- Run | Yrd Mat Turns Passed 978 | 90 888 Spaces Moved 612 | 55 557 Core 4 | 1 3 Treads . | . . Legs 608 | 54 554 Wheels . | . . Hover . | . . Flight . | . . Fastest Speed 50 | 50 120 Average Speed 120 | 118 120 Slowest Speed 200 | 120 200 Overloaded Moves . | . . Propulsion Burnouts . | . . Robots Hopped . | . . Potential Cave-ins . | . . Cave-ins Triggered . | . . Exploration Rate (%) 38 | 5 72 Regions Visited 1 Branch Regions . Pre-discovered Areas . | . . Known Exits Taken . | . . Unknown Exits Taken 1 | 1 . Scrap Searched . | . . Spaces Dug . | . . Terrain Destroyed . | . . Melee . | . . Projectile . | . . AOE . | . . Terrain Rammed . | . . Walls Destroyed . | . . Machines Disabled . | . . Actions | -11 -10 --------- Run | Yrd Mat Total 738 | 67 671 Wait 32 | . 32 Move 611 | 54 557 Hop . | . . Pick Up 8 | 1 7 Fast Attach 15 | 7 8 Attach 2 | . 2 Detach 1 | . 1 Swap 1 | . 1 Drop 6 | . 6 Fire 8 | 5 3 Melee 54 | . 54 Ram . | . . Kick . | . . Crush . | . . Escape Stasis . | . . Rewire . | . . Trap . | . . Miscellaneous . | . . Route ------- -11/Scrapyard -10/Materials (discovered 3 exits: [*Mat x2] / [Sub]) History --------- Turn | Location | Event 8 | -11/Scrapyard | Discovered new exit (range 16) 91 | -11/Scrapyard | Entered Materials 307 | -10/Materials | Build established: Mutant 366 | -10/Materials | Discovered new exit (range 9) 572 | -10/Materials | Discovered new exit (range 16) 703 | -10/Materials | Lost 4 parts (1p2n1u) 726 | -10/Materials | Core integrity fell below 50% 854 | -10/Materials | Repaired Corrupted Lgt. Nuclear Core 943 | -10/Materials | Discovered new exit (range 12) 951 | -10/Materials | Core integrity fell below 20% 979 | -10/Materials | Destroyed by G-34 Mercenary with Small Laser Last Messages --------------- 00943_ EXIT=FOUND 00943_ Aluminum Leg destroyed. 00954_ Mace follow-up attack on G-47 Trooper. 00954_ Destroyed Imp. Heat Sink. 00954_ G-47 Trooper system corrupted by crushing effect. 00955_ G-47 Trooper system terminally corrupted. 00961_ Lgt. Nuclear Core destroyed. 00965_ Acquired Corrupted Aluminum Leg. 00965_ Integrated Corrupted Aluminum Leg (+7). 00965_ Complication: System interference. 00965_ Mace temporarily disabled. 00969_ G-34 Mercenary knocked back. 00972_ G-34 Mercenary suffers critical hit (Smash). 00972_ G-34 Mercenary destroyed. 00974_ System corrupted: Matter fused (-5). 00975_ G-34 Mercenary destroyed. 00975_ Core Shielding destroyed. 00977_ G-34 Mercenary destroyed. Map ----- +----------------------------------------------------+ | ??????# | | ??????# | | ???#?#####+###### #############+#### | | ??????## #?# #????????????????? | | ???????#""" #?# #??#??#??????????? | | ?#??#??#""" #?# #??#????#????????? | | ????#??#""" #?# #????????????????? | | ???????# #?# ##???????????????? | | ?#?????# #?# #????????????????? | | ???????########?# #????????????????? | | ???????#??????#?# ##???????????????? | | ?#??????##?#??#?# #????????????????? | | ????##?????###### #######/### ?????? | | ????# ###### ??? | | #